[Event "Titled Tuesday Blitz August 08 Early 2023"]
[White "Seemann, Jakub"]
[Black "Puranik, Abhimanyu"]
[WhiteFideId "21874697"]
[BlackFideId "5061245"]
[WhiteElo "2674"]
[BlackElo "2961"]
[Result "1-0"]
[Round "5"]
[TimeControl "180+1"]
[Date "2023.08.08"]
[WhiteClock "0:00:10"]
[BlackClock "0:00:00"]
[Board "24"]

1. Nf3 {[%clk 0:03:00]}  Nf6 {[%clk 0:02:59]} 2. g3 {[%clk 0:03:01]}  b6 {[%clk 0:02:58]} 3. Bg2 {[%clk 0:03:01]}  Bb7 {[%clk 0:02:58]} 4. O-O {[%clk 0:03:02]}  c5 {[%clk 0:02:57]} 5. c4 {[%clk 0:03:01]}  g6 {[%clk 0:02:57]} 6. d4 {[%clk 0:02:59]}  cxd4 {[%clk 0:02:58]} 7. Qxd4 {[%clk 0:03:00]}  Bg7 {[%clk 0:02:57]} 8. Nc3 {[%clk 0:03:00]}  O-O {[%clk 0:02:57]} 9. Qh4 {[%clk 0:03:00]}  d6 {[%clk 0:02:57]} 10. Bh6 {[%clk 0:02:59]}  Nbd7 {[%clk 0:02:54]} 11. Bxg7 {[%clk 0:02:59]}  Kxg7 {[%clk 0:02:54]} 12. Rfd1 {[%clk 0:03:00]}  Rc8 {[%clk 0:02:52]} 13. Rac1 {[%clk 0:02:59]}  h6 {[%clk 0:02:48]} 14. b3 {[%clk 0:02:54]}  a6 {[%clk 0:02:40]} 15. Qd4 {[%clk 0:02:51]}  Qc7 {[%clk 0:02:39]} 16. e4 {[%clk 0:02:39]}  Rfd8 {[%clk 0:02:25]} 17. Nd5 {[%clk 0:02:29]}  e5 {[%clk 0:02:23]} 18. Nxc7 {[%clk 0:02:08]}  exd4 {[%clk 0:02:23]} 19. Nd5 {[%clk 0:02:09]}  Nxe4 {[%clk 0:02:23]} 20. Nxd4 {[%clk 0:02:05]}  Bxd5 {[%clk 0:02:20]} 21. cxd5 {[%clk 0:02:06]}  Rxc1 {[%clk 0:02:12]} 22. Rxc1 {[%clk 0:02:05]}  Nec5 {[%clk 0:02:12]} 23. b4 {[%clk 0:02:01]}  Nd3 {[%clk 0:02:12]} 24. Rc7 {[%clk 0:01:34]}  Nf8 {[%clk 0:01:36]} 25. a3 {[%clk 0:01:18]}  Ne5 {[%clk 0:01:15]} 26. h3 {[%clk 0:01:02]}  Rd7 {[%clk 0:01:13]} 27. Rc8 {[%clk 0:01:00]}  a5 {[%clk 0:01:08]} 28. f4 {[%clk 0:00:39]}  axb4 {[%clk 0:01:05]} 29. fxe5 {[%clk 0:00:36]}  dxe5 {[%clk 0:00:54]} 30. Nc6 {[%clk 0:00:28]}  b3 {[%clk 0:00:49]} 31. Rb8 {[%clk 0:00:28]}  f5 {[%clk 0:00:24]} 32. Rxb6 {[%clk 0:00:28]}  e4 {[%clk 0:00:25]} 33. Rxb3 {[%clk 0:00:18]}  Rxd5 {[%clk 0:00:25]} 34. a4 {[%clk 0:00:18]}  Ne6 {[%clk 0:00:25]} 35. a5 {[%clk 0:00:17]}  Rd1+ {[%clk 0:00:25]} 36. Kf2 {[%clk 0:00:15]}  Rd2+ {[%clk 0:00:24]} 37. Kf1 {[%clk 0:00:13]}  Ra2 {[%clk 0:00:22]} 38. Rb7+ {[%clk 0:00:12]}  Kf6 {[%clk 0:00:22]} 39. Rb6 {[%clk 0:00:12]}  Kg5 {[%clk 0:00:08]} 40. a6 {[%clk 0:00:12]}  Nc5 {[%clk 0:00:07]} 41. a7 {[%clk 0:00:09]}  e3 {[%clk 0:00:04]} 42. Bf3 {[%clk 0:00:09]}  Rf2+ {[%clk 0:00:03]} 43. Kg1 {[%clk 0:00:10]}  Rxf3 {[%clk 0:00:02]} 44. a8=Q {[%clk 0:00:09]}  e2 {[%clk 0:00:00]} 45. Qd8+ {[%clk 0:00:10]} 1-0


[Site "https://www.chess.com"]

[Event "Titled Tuesday Blitz August 08 Early 2023"]
[White "Dehtiarov, Roman"]
[Black "Indjic, Aleksandar"]
[WhiteFideId "14186640"]
[BlackFideId "911925"]
[WhiteElo "2665"]
[BlackElo "2928"]
[Result "0-1"]
[Round "5"]
[TimeControl "180+1"]
[Date "2023.08.08"]
[WhiteClock "0:00:03"]
[BlackClock "0:00:39"]
[Board "27"]

1. c4 {[%clk 0:03:00]}  Nf6 {[%clk 0:03:00]} 2. Nc3 {[%clk 0:02:51]}  e5 {[%clk 0:02:59]} 3. g3 {[%clk 0:02:51]}  h6 {[%clk 0:02:58]} 4. Bg2 {[%clk 0:02:51]}  Bb4 {[%clk 0:02:56]} 5. Nd5 {[%clk 0:02:44]}  Nxd5 {[%clk 0:02:56]} 6. cxd5 {[%clk 0:02:45]}  O-O {[%clk 0:02:55]} 7. e3 {[%clk 0:02:41]}  d6 {[%clk 0:02:54]} 8. Ne2 {[%clk 0:02:41]}  c6 {[%clk 0:02:41]} 9. dxc6 {[%clk 0:02:38]}  Nxc6 {[%clk 0:02:40]} 10. O-O {[%clk 0:02:38]}  d5 {[%clk 0:02:40]} 11. d3 {[%clk 0:02:34]}  Be6 {[%clk 0:02:39]} 12. Bd2 {[%clk 0:02:34]}  a5 {[%clk 0:02:39]} 13. h3 {[%clk 0:02:33]}  Qb6 {[%clk 0:02:33]} 14. a3 {[%clk 0:02:30]}  Be7 {[%clk 0:02:28]} 15. Rb1 {[%clk 0:02:22]}  Rfd8 {[%clk 0:02:24]} 16. Kh2 {[%clk 0:02:18]}  f6 {[%clk 0:02:17]} 17. d4 {[%clk 0:01:54]}  e4 {[%clk 0:02:16]} 18. f3 {[%clk 0:01:53]}  f5 {[%clk 0:02:15]} 19. Nf4 {[%clk 0:01:53]}  Bf7 {[%clk 0:02:15]} 20. fxe4 {[%clk 0:01:53]}  fxe4 {[%clk 0:02:14]} 21. g4 {[%clk 0:01:52]}  Bd6 {[%clk 0:02:13]} 22. Kh1 {[%clk 0:01:52]}  Ne7 {[%clk 0:02:13]} 23. h4 {[%clk 0:01:43]}  Bc7 {[%clk 0:02:08]} 24. g5 {[%clk 0:01:37]}  hxg5 {[%clk 0:02:07]} 25. hxg5 {[%clk 0:01:38]}  Ng6 {[%clk 0:02:00]} 26. Nxg6 {[%clk 0:01:14]}  Qxg6 {[%clk 0:02:00]} 27. Qg4 {[%clk 0:01:13]}  Be6 {[%clk 0:01:55]} 28. Qh4 {[%clk 0:01:11]}  Qh7 {[%clk 0:01:54]} 29. Qxh7+ {[%clk 0:01:08]}  Kxh7 {[%clk 0:01:55]} 30. Rbc1 {[%clk 0:01:07]}  Bd6 {[%clk 0:01:54]} 31. b4 {[%clk 0:00:58]}  a4 {[%clk 0:01:53]} 32. Kg1 {[%clk 0:00:41]}  Kg6 {[%clk 0:01:52]} 33. Rc5 {[%clk 0:00:37]}  Bxc5 {[%clk 0:01:46]} 34. dxc5 {[%clk 0:00:38]}  Rf8 {[%clk 0:01:42]} 35. Bc3 {[%clk 0:00:30]}  Rxf1+ {[%clk 0:01:41]} 36. Bxf1 {[%clk 0:00:31]}  Bd7 {[%clk 0:01:41]} 37. b5 {[%clk 0:00:22]}  Rg8 {[%clk 0:01:40]} 38. Be5 {[%clk 0:00:19]}  Kxg5 {[%clk 0:01:39]} 39. Kf2 {[%clk 0:00:13]}  Kg6 {[%clk 0:01:39]} 40. Ke2 {[%clk 0:00:13]}  Rf8 {[%clk 0:01:35]} 41. c6 {[%clk 0:00:11]}  bxc6 {[%clk 0:01:34]} 42. b6 {[%clk 0:00:11]}  Bc8 {[%clk 0:01:34]} 43. Ke1 {[%clk 0:00:12]}  Kf7 {[%clk 0:01:26]} 44. Bd6 {[%clk 0:00:09]}  Rh8 {[%clk 0:01:26]} 45. Be5 {[%clk 0:00:08]}  Rh1 {[%clk 0:01:24]} 46. Kf2 {[%clk 0:00:08]}  Bb7 {[%clk 0:01:24]} 47. Bg2 {[%clk 0:00:06]}  Rb1 {[%clk 0:01:23]} 48. Bd4 {[%clk 0:00:03]}  Rb3 {[%clk 0:01:20]} 49. Bc5 {[%clk 0:00:03]}  Rb5 {[%clk 0:01:20]} 50. Bd4 {[%clk 0:00:03]}  c5 {[%clk 0:01:15]} 51. Bf1 {[%clk 0:00:03]}  Rxb6 {[%clk 0:01:13]} 52. Bxc5 {[%clk 0:00:04]}  Rb3 {[%clk 0:01:13]} 53. Be2 {[%clk 0:00:01]}  Bc6 {[%clk 0:01:12]} 54. Bg4 {[%clk 0:00:01]}  g5 {[%clk 0:01:10]} 55. Bf5 {[%clk 0:00:01]}  Rb2+ {[%clk 0:01:07]} 56. Kg3 {[%clk 0:00:01]}  Rc2 {[%clk 0:01:06]} 57. Bd4 {[%clk 0:00:01]}  Bb5 {[%clk 0:01:04]} 58. Kg4 {[%clk 0:00:01]}  Rg2+ {[%clk 0:01:03]} 59. Kh5 {[%clk 0:00:02]}  Be2+ {[%clk 0:01:01]} 60. Kh6 {[%clk 0:00:03]}  g4 {[%clk 0:01:01]} 61. Kg5 {[%clk 0:00:03]}  Rf2 {[%clk 0:00:58]} 62. Be5 {[%clk 0:00:03]}  Bd1 {[%clk 0:00:53]} 63. Bf4 {[%clk 0:00:02]}  Ra2 {[%clk 0:00:50]} 64. Bg6+ {[%clk 0:00:02]}  Ke7 {[%clk 0:00:49]} 65. Kf5 {[%clk 0:00:02]}  Rxa3 {[%clk 0:00:41]} 66. Ke5 {[%clk 0:00:02]}  Kd7 {[%clk 0:00:41]} 67. Bf5+ {[%clk 0:00:02]}  Kc6 {[%clk 0:00:41]} 68. Ke6 {[%clk 0:00:03]}  g3 {[%clk 0:00:40]} 69. Bxg3 {[%clk 0:00:02]}  Rxe3 {[%clk 0:00:40]} 70. Be5 {[%clk 0:00:03]}  Rd3 {[%clk 0:00:38]} 71. Ke7 {[%clk 0:00:03]}  Kb5 {[%clk 0:00:37]} 72. Bc8 {[%clk 0:00:03]}  Kc4 {[%clk 0:00:38]} 73. Ba6+ {[%clk 0:00:03]}  Kb3 {[%clk 0:00:38]} 74. Bxd3 {[%clk 0:00:02]}  exd3 {[%clk 0:00:39]} 75. Kd6 {[%clk 0:00:03]}  Bf3 {[%clk 0:00:39]} 76. Bf4 {[%clk 0:00:02]}  a3 {[%clk 0:00:39]} 77. Kc5 {[%clk 0:00:02]}  a2 {[%clk 0:00:39]} 78. Be5 {[%clk 0:00:03]}  d2 {[%clk 0:00:39]} 79. Bd4 {[%clk 0:00:03]}  d1=Q {[%clk 0:00:39]} 0-1


[Site "https://www.chess.com"]

[Event "Titled Tuesday Blitz August 08 Early 2023"]
[White "Timerkhanov, Alexander"]
[Black "Terry, Renato"]
[WhiteFideId "24177938"]
[BlackFideId "3803457"]
[WhiteElo "2650"]
[BlackElo "2923"]
[Result "1-0"]
[Round "5"]
[TimeControl "180+1"]
[Date "2023.08.08"]
[WhiteClock "0:00:03"]
[BlackClock "0:00:00"]
[Board "29"]

1. d4 {[%clk 0:03:00]}  e6 {[%clk 0:02:57]} 2. Nf3 {[%clk 0:02:58]}  Nf6 {[%clk 0:02:57]} 3. Bf4 {[%clk 0:02:58]}  b6 {[%clk 0:02:56]} 4. e3 {[%clk 0:02:58]}  Bb7 {[%clk 0:02:56]} 5. h3 {[%clk 0:02:58]}  Bd6 {[%clk 0:02:55]} 6. Bxd6 {[%clk 0:02:51]}  cxd6 {[%clk 0:02:56]} 7. Nbd2 {[%clk 0:02:51]}  d5 {[%clk 0:02:55]} 8. Bd3 {[%clk 0:02:48]}  O-O {[%clk 0:02:54]} 9. c3 {[%clk 0:02:48]}  Ne4 {[%clk 0:02:50]} 10. O-O {[%clk 0:02:47]}  f5 {[%clk 0:02:49]} 11. a4 {[%clk 0:02:44]}  Nc6 {[%clk 0:02:48]} 12. Be2 {[%clk 0:02:41]}  Qf6 {[%clk 0:02:34]} 13. Nxe4 {[%clk 0:02:39]}  fxe4 {[%clk 0:02:32]} 14. Nh2 {[%clk 0:02:38]}  Qg5 {[%clk 0:02:30]} 15. Qd2 {[%clk 0:02:38]}  Ne7 {[%clk 0:02:17]} 16. f4 {[%clk 0:02:32]}  Qg6 {[%clk 0:02:00]} 17. a5 {[%clk 0:02:23]}  Nf5 {[%clk 0:01:53]} 18. Rf2 {[%clk 0:02:20]}  Bc6 {[%clk 0:01:45]} 19. Bg4 {[%clk 0:02:12]}  Nd6 {[%clk 0:01:44]} 20. Be2 {[%clk 0:02:10]}  Nf5 {[%clk 0:01:35]} 21. Bg4 {[%clk 0:02:06]}  Nh4 {[%clk 0:01:23]} 22. g3 {[%clk 0:01:59]}  Nf5 {[%clk 0:01:23]} 23. Bxf5 {[%clk 0:01:58]}  exf5 {[%clk 0:01:23]} 24. Kg2 {[%clk 0:01:54]}  b5 {[%clk 0:01:16]} 25. Rg1 {[%clk 0:01:50]}  b4 {[%clk 0:01:15]} 26. cxb4 {[%clk 0:01:50]}  Rab8 {[%clk 0:01:15]} 27. Kh1 {[%clk 0:01:48]}  Qd6 {[%clk 0:01:14]} 28. g4 {[%clk 0:01:44]}  Qxb4 {[%clk 0:01:14]} 29. gxf5 {[%clk 0:01:18]}  Qxd2 {[%clk 0:01:10]} 30. Rxd2 {[%clk 0:01:19]}  Kh8 {[%clk 0:00:49]} 31. Ng4 {[%clk 0:01:14]}  Rxf5 {[%clk 0:00:43]} 32. Rc1 {[%clk 0:01:01]}  Rb3 {[%clk 0:00:30]} 33. Rc3 {[%clk 0:00:59]}  Rxc3 {[%clk 0:00:24]} 34. bxc3 {[%clk 0:00:58]}  d6 {[%clk 0:00:25]} 35. Rb2 {[%clk 0:00:56]}  Rf8 {[%clk 0:00:25]} 36. Nf2 {[%clk 0:00:33]}  Rc8 {[%clk 0:00:24]} 37. Kg2 {[%clk 0:00:32]}  h5 {[%clk 0:00:23]} 38. h4 {[%clk 0:00:31]}  a6 {[%clk 0:00:20]} 39. Rb6 {[%clk 0:00:30]}  Bb5 {[%clk 0:00:21]} 40. Rxd6 {[%clk 0:00:29]}  Rxc3 {[%clk 0:00:21]} 41. Rxd5 {[%clk 0:00:30]}  g6 {[%clk 0:00:17]} 42. Nxe4 {[%clk 0:00:21]}  Rxe3 {[%clk 0:00:17]} 43. Rd8+ {[%clk 0:00:20]}  Kg7 {[%clk 0:00:17]} 44. Ng5 {[%clk 0:00:18]}  Ra3 {[%clk 0:00:15]} 45. d5 {[%clk 0:00:18]}  Rxa5 {[%clk 0:00:13]} 46. d6 {[%clk 0:00:18]}  Ra2+ {[%clk 0:00:08]} 47. Kf3 {[%clk 0:00:17]}  Kf6 {[%clk 0:00:09]} 48. Ke3 {[%clk 0:00:16]}  Kf5 {[%clk 0:00:06]} 49. Rf8+ {[%clk 0:00:16]}  Kg4 {[%clk 0:00:06]} 50. Rf7 {[%clk 0:00:15]}  Kxh4 {[%clk 0:00:05]} 51. d7 {[%clk 0:00:14]}  Ra3+ {[%clk 0:00:06]} 52. Ke4 {[%clk 0:00:14]}  Rd3 {[%clk 0:00:07]} 53. Nf3+ {[%clk 0:00:08]}  Kg3 {[%clk 0:00:07]} 54. Ne5 {[%clk 0:00:08]}  Rd1 {[%clk 0:00:07]} 55. Rg7 {[%clk 0:00:07]}  Rd6 {[%clk 0:00:03]} 56. Rxg6+ {[%clk 0:00:06]}  Rxg6 {[%clk 0:00:03]} 57. d8=Q {[%clk 0:00:06]}  Rg7 {[%clk 0:00:01]} 58. Qf6 {[%clk 0:00:05]}  Rg8 {[%clk 0:00:01]} 59. Qf7 {[%clk 0:00:03]}  Rg4 {[%clk 0:00:00]} 60. Qxh5 {[%clk 0:00:03]} 1-0


[Site "https://www.chess.com"]

[Event "Titled Tuesday Blitz August 08 Early 2023"]
[White "Demchenko, Anton"]
[Black "Jeet, Jain"]
[WhiteFideId "4160258"]
[BlackFideId "5073022"]
[WhiteElo "2902"]
[BlackElo "2644"]
[Result "1-0"]
[Round "5"]
[TimeControl "180+1"]
[Date "2023.08.08"]
[WhiteClock "0:01:08"]
[BlackClock "0:00:27"]
[Board "31"]

1. e4 {[%clk 0:03:00]}  c6 {[%clk 0:02:55]} 2. d4 {[%clk 0:03:00]}  d5 {[%clk 0:02:53]} 3. e5 {[%clk 0:02:59]}  Bf5 {[%clk 0:02:52]} 4. h4 {[%clk 0:03:00]}  h5 {[%clk 0:02:49]} 5. c4 {[%clk 0:03:01]}  e6 {[%clk 0:02:48]} 6. Nc3 {[%clk 0:03:00]}  Nd7 {[%clk 0:02:41]} 7. Nge2 {[%clk 0:03:00]}  Bb4 {[%clk 0:02:34]} 8. cxd5 {[%clk 0:02:58]}  cxd5 {[%clk 0:02:33]} 9. Ng3 {[%clk 0:02:58]}  g6 {[%clk 0:02:19]} 10. Be2 {[%clk 0:02:44]}  Ne7 {[%clk 0:02:12]} 11. Bg5 {[%clk 0:02:42]}  Rc8 {[%clk 0:02:11]} 12. O-O {[%clk 0:02:40]}  Qa5 {[%clk 0:01:58]} 13. Nb5 {[%clk 0:02:36]}  a6 {[%clk 0:01:50]} 14. Nd6+ {[%clk 0:01:54]}  Bxd6 {[%clk 0:01:49]} 15. exd6 {[%clk 0:01:55]}  Nc6 {[%clk 0:01:42]} 16. Nxf5 {[%clk 0:01:55]}  exf5 {[%clk 0:01:33]} 17. Re1 {[%clk 0:01:48]}  Kf8 {[%clk 0:01:14]} 18. Bf3 {[%clk 0:01:42]}  Kg7 {[%clk 0:00:56]} 19. a3 {[%clk 0:01:29]}  Qb6 {[%clk 0:00:54]} 20. Bxd5 {[%clk 0:01:29]}  Qxd4 {[%clk 0:00:46]} 21. Qxd4+ {[%clk 0:01:21]}  Nxd4 {[%clk 0:00:47]} 22. Re7 {[%clk 0:01:21]}  Nb6 {[%clk 0:00:30]} 23. Rxf7+ {[%clk 0:01:18]}  Kg8 {[%clk 0:00:27]} 24. Rc7+ {[%clk 0:01:08]} 1-0


[Site "https://www.chess.com"]

[Event "Titled Tuesday Blitz August 08 Early 2023"]
[White "Gholami Orimi, Mahdi"]
[Black "Radzhabov, Rodion"]
[WhiteFideId "12558486"]
[BlackFideId "884715"]
[WhiteElo "2897"]
[BlackElo "2640"]
[Result "1-0"]
[Round "5"]
[TimeControl "180+1"]
[Date "2023.08.08"]
[WhiteClock "0:00:03"]
[BlackClock "0:00:00"]
[Board "32"]

1. d4 {[%clk 0:03:00]}  Nf6 {[%clk 0:02:56]} 2. c4 {[%clk 0:03:00]}  e6 {[%clk 0:02:56]} 3. Nc3 {[%clk 0:03:01]}  Bb4 {[%clk 0:02:49]} 4. f3 {[%clk 0:03:00]}  d5 {[%clk 0:02:40]} 5. a3 {[%clk 0:02:54]}  Bxc3+ {[%clk 0:02:33]} 6. bxc3 {[%clk 0:02:55]}  c5 {[%clk 0:02:33]} 7. cxd5 {[%clk 0:02:46]}  Nxd5 {[%clk 0:02:25]} 8. dxc5 {[%clk 0:02:46]}  Qa5 {[%clk 0:02:23]} 9. e4 {[%clk 0:02:43]}  Ne7 {[%clk 0:02:01]} 10. Be3 {[%clk 0:02:36]}  Nd7 {[%clk 0:01:32]} 11. Qb3 {[%clk 0:02:17]}  Qc7 {[%clk 0:01:25]} 12. Bb5 {[%clk 0:02:05]}  O-O {[%clk 0:01:15]} 13. Bxd7 {[%clk 0:01:39]}  Bxd7 {[%clk 0:01:16]} 14. Ne2 {[%clk 0:01:40]}  Nc6 {[%clk 0:01:02]} 15. O-O {[%clk 0:01:39]}  Ne5 {[%clk 0:00:53]} 16. Rfd1 {[%clk 0:01:37]}  a6 {[%clk 0:00:42]} 17. a4 {[%clk 0:01:36]}  Rfd8 {[%clk 0:00:38]} 18. Rd6 {[%clk 0:01:33]}  b5 {[%clk 0:00:30]} 19. axb5 {[%clk 0:01:03]}  axb5 {[%clk 0:00:18]} 20. Rdd1 {[%clk 0:00:56]}  Nc4 {[%clk 0:00:17]} 21. Bf2 {[%clk 0:00:53]}  e5 {[%clk 0:00:17]} 22. Ng3 {[%clk 0:00:39]}  Qc6 {[%clk 0:00:14]} 23. Nf1 {[%clk 0:00:23]}  Be6 {[%clk 0:00:14]} 24. Qb4 {[%clk 0:00:13]}  Rxa1 {[%clk 0:00:13]} 25. Rxa1 {[%clk 0:00:13]}  h5 {[%clk 0:00:14]} 26. Ne3 {[%clk 0:00:12]}  Nxe3 {[%clk 0:00:11]} 27. Bxe3 {[%clk 0:00:13]}  Bc4 {[%clk 0:00:11]} 28. Qa5 {[%clk 0:00:12]}  Qd7 {[%clk 0:00:10]} 29. c6 {[%clk 0:00:10]}  Qd3 {[%clk 0:00:10]} 30. Qb6 {[%clk 0:00:07]}  Rc8 {[%clk 0:00:09]} 31. h3 {[%clk 0:00:03]}  Rxc6 {[%clk 0:00:06]} 32. Qxc6 {[%clk 0:00:02]}  Qxe3+ {[%clk 0:00:06]} 33. Kh2 {[%clk 0:00:02]}  Qxc3 {[%clk 0:00:04]} 34. Qc8+ {[%clk 0:00:03]}  Kh7 {[%clk 0:00:00]} 35. Ra8 {[%clk 0:00:03]} 1-0


[Site "https://www.chess.com"]

[Event "Titled Tuesday Blitz August 08 Early 2023"]
[White "Baskakov, Egor"]
[Black "Tologon tegin, Semetei"]
[WhiteFideId "24197866"]
[BlackFideId "13800574"]
[WhiteElo "2875"]
[BlackElo "2640"]
[Result "1-0"]
[Round "5"]
[TimeControl "180+1"]
[Date "2023.08.08"]
[WhiteClock "0:00:19"]
[BlackClock "0:00:00"]
[Board "33"]

1. e4 {[%clk 0:03:00]}  e5 {[%clk 0:02:58]} 2. Nc3 {[%clk 0:03:00]}  Nc6 {[%clk 0:02:56]} 3. g3 {[%clk 0:03:00]}  Bc5 {[%clk 0:02:55]} 4. Bg2 {[%clk 0:03:01]}  Nf6 {[%clk 0:02:55]} 5. h3 {[%clk 0:03:00]}  d6 {[%clk 0:02:54]} 6. Nge2 {[%clk 0:03:00]}  Be6 {[%clk 0:02:53]} 7. Nd5 {[%clk 0:03:00]}  Qd7 {[%clk 0:02:51]} 8. d3 {[%clk 0:02:58]}  h6 {[%clk 0:02:43]} 9. c3 {[%clk 0:02:54]}  Bxd5 {[%clk 0:02:23]} 10. exd5 {[%clk 0:02:54]}  Ne7 {[%clk 0:02:22]} 11. c4 {[%clk 0:02:53]}  Nh5 {[%clk 0:02:14]} 12. d4 {[%clk 0:02:41]}  exd4 {[%clk 0:02:11]} 13. Nxd4 {[%clk 0:02:42]}  Nf5 {[%clk 0:01:55]} 14. Nb3 {[%clk 0:02:23]}  Bb6 {[%clk 0:01:22]} 15. c5 {[%clk 0:02:17]}  Nhxg3 {[%clk 0:01:16]} 16. fxg3 {[%clk 0:02:14]}  Nxg3 {[%clk 0:01:17]} 17. cxb6 {[%clk 0:02:11]}  Nxh1 {[%clk 0:01:17]} 18. Qe2+ {[%clk 0:01:54]}  Kf8 {[%clk 0:01:14]} 19. Bxh1 {[%clk 0:01:53]}  Re8 {[%clk 0:01:10]} 20. Be3 {[%clk 0:01:50]}  Qxh3 {[%clk 0:01:10]} 21. Kd2 {[%clk 0:01:48]}  axb6 {[%clk 0:01:08]} 22. Nd4 {[%clk 0:01:34]}  Kg8 {[%clk 0:00:50]} 23. Bf3 {[%clk 0:01:24]}  Kh7 {[%clk 0:00:47]} 24. Rh1 {[%clk 0:01:18]}  Qg3 {[%clk 0:00:42]} 25. Qd3+ {[%clk 0:00:54]}  Qg6 {[%clk 0:00:40]} 26. Nf5 {[%clk 0:00:26]}  Re5 {[%clk 0:00:34]} 27. Nxh6 {[%clk 0:00:24]}  Qxd3+ {[%clk 0:00:32]} 28. Kxd3 {[%clk 0:00:24]}  Rxe3+ {[%clk 0:00:22]} 29. Kxe3 {[%clk 0:00:24]}  gxh6 {[%clk 0:00:20]} 30. Rc1 {[%clk 0:00:24]}  Re8+ {[%clk 0:00:20]} 31. Kf4 {[%clk 0:00:24]}  Re7 {[%clk 0:00:20]} 32. b4 {[%clk 0:00:19]}  Kg7 {[%clk 0:00:20]} 33. a4 {[%clk 0:00:20]}  Kf6 {[%clk 0:00:20]} 34. a5 {[%clk 0:00:20]}  bxa5 {[%clk 0:00:20]} 35. bxa5 {[%clk 0:00:21]}  Rd7 {[%clk 0:00:14]} 36. Rb1 {[%clk 0:00:21]}  c5 {[%clk 0:00:11]} 37. dxc6 {[%clk 0:00:19]}  bxc6 {[%clk 0:00:12]} 38. Bxc6 {[%clk 0:00:20]}  Ra7 {[%clk 0:00:12]} 39. Rb5 {[%clk 0:00:20]}  Ke6 {[%clk 0:00:12]} 40. Bb7 {[%clk 0:00:20]}  Kd7 {[%clk 0:00:12]} 41. a6 {[%clk 0:00:21]}  Kc7 {[%clk 0:00:12]} 42. Rf5 {[%clk 0:00:19]}  Kb6 {[%clk 0:00:12]} 43. Rxf7 {[%clk 0:00:19]}  h5 {[%clk 0:00:13]} 44. Rh7 {[%clk 0:00:19]}  h4 {[%clk 0:00:11]} 45. Rxh4 {[%clk 0:00:19]}  d5 {[%clk 0:00:12]} 46. Ke5 {[%clk 0:00:18]}  d4 {[%clk 0:00:13]} 47. Rxd4 {[%clk 0:00:18]}  Kc7 {[%clk 0:00:12]} 48. Rc4+ {[%clk 0:00:18]}  Kb6 {[%clk 0:00:12]} 49. Kd5 {[%clk 0:00:19]}  Kb5 {[%clk 0:00:12]} 50. Rc6 {[%clk 0:00:18]}  Ka5 {[%clk 0:00:12]} 51. Kc5 {[%clk 0:00:19]}  Ka4 {[%clk 0:00:00]} 52. Kb6 {[%clk 0:00:19]} 1-0


[Site "https://www.chess.com"]

[Event "Titled Tuesday Blitz August 08 Early 2023"]
[White "Khubukshanov, Erdem"]
[Black "Iskusnyh, Sergei"]
[WhiteFideId "54114527"]
[BlackFideId "4120027"]
[WhiteElo "2849"]
[BlackElo "2632"]
[Result "0-1"]
[Round "5"]
[TimeControl "180+1"]
[Date "2023.08.08"]
[WhiteClock "0:00:16"]
[BlackClock "0:00:06"]
[Board "34"]

1. Nf3 {[%clk 0:03:00]}  d5 {[%clk 0:02:58]} 2. g3 {[%clk 0:03:01]}  Nf6 {[%clk 0:02:58]} 3. Bg2 {[%clk 0:03:01]}  c6 {[%clk 0:02:57]} 4. O-O {[%clk 0:03:00]}  Bf5 {[%clk 0:02:55]} 5. d3 {[%clk 0:02:58]}  h6 {[%clk 0:02:54]} 6. a4 {[%clk 0:02:55]}  e6 {[%clk 0:02:51]} 7. a5 {[%clk 0:02:54]}  Be7 {[%clk 0:02:50]} 8. Nbd2 {[%clk 0:02:53]}  O-O {[%clk 0:02:49]} 9. b3 {[%clk 0:02:49]}  c5 {[%clk 0:02:45]} 10. Bb2 {[%clk 0:02:33]}  Nc6 {[%clk 0:02:44]} 11. a6 {[%clk 0:02:34]}  b5 {[%clk 0:02:39]} 12. c4 {[%clk 0:02:34]}  bxc4 {[%clk 0:02:34]} 13. bxc4 {[%clk 0:02:34]}  Rb8 {[%clk 0:02:23]} 14. Qc1 {[%clk 0:02:31]}  Qb6 {[%clk 0:02:09]} 15. Ne5 {[%clk 0:02:23]}  Nxe5 {[%clk 0:02:05]} 16. Bxe5 {[%clk 0:02:22]}  Rbc8 {[%clk 0:01:55]} 17. Qa3 {[%clk 0:02:19]}  Ng4 {[%clk 0:01:22]} 18. Rfb1 {[%clk 0:02:09]}  Qd8 {[%clk 0:01:20]} 19. Bc3 {[%clk 0:02:03]}  d4 {[%clk 0:01:14]} 20. Ba5 {[%clk 0:02:03]}  Qd6 {[%clk 0:01:11]} 21. Rb7 {[%clk 0:01:55]}  Bg5 {[%clk 0:00:58]} 22. Rxa7 {[%clk 0:01:50]}  e5 {[%clk 0:00:42]} 23. h4 {[%clk 0:01:41]}  Bxd2 {[%clk 0:00:30]} 24. Bxd2 {[%clk 0:01:41]}  e4 {[%clk 0:00:30]} 25. dxe4 {[%clk 0:01:37]}  Be6 {[%clk 0:00:30]} 26. Bf4 {[%clk 0:01:36]}  Qd8 {[%clk 0:00:25]} 27. Qa4 {[%clk 0:01:20]}  g5 {[%clk 0:00:24]} 28. Bd2 {[%clk 0:01:05]}  Qf6 {[%clk 0:00:21]} 29. f3 {[%clk 0:00:49]}  Ne5 {[%clk 0:00:20]} 30. hxg5 {[%clk 0:00:48]}  hxg5 {[%clk 0:00:20]} 31. Rb7 {[%clk 0:00:45]}  Nxc4 {[%clk 0:00:19]} 32. Bc1 {[%clk 0:00:44]}  Qe5 {[%clk 0:00:19]} 33. f4 {[%clk 0:00:43]}  gxf4 {[%clk 0:00:18]} 34. Bxf4 {[%clk 0:00:43]}  Qh5 {[%clk 0:00:17]} 35. a7 {[%clk 0:00:40]}  Ne5 {[%clk 0:00:16]} 36. Bxe5 {[%clk 0:00:29]}  Qxe5 {[%clk 0:00:16]} 37. Qa3 {[%clk 0:00:29]}  c4 {[%clk 0:00:13]} 38. Qf3 {[%clk 0:00:23]}  c3 {[%clk 0:00:08]} 39. Qf4 {[%clk 0:00:23]}  Qc5 {[%clk 0:00:07]} 40. e5 {[%clk 0:00:18]}  d3+ {[%clk 0:00:06]} 41. Qf2 {[%clk 0:00:18]}  d2 {[%clk 0:00:05]} 42. Qxc5 {[%clk 0:00:18]}  Rxc5 {[%clk 0:00:06]} 43. Be4 {[%clk 0:00:17]}  c2 {[%clk 0:00:05]} 44. Bxc2 {[%clk 0:00:17]}  Rxc2 {[%clk 0:00:05]} 45. Kf2 {[%clk 0:00:12]}  Rc1 {[%clk 0:00:06]} 46. a8=Q {[%clk 0:00:10]}  Rxa8 {[%clk 0:00:03]} 47. Rxa8+ {[%clk 0:00:10]}  Kg7 {[%clk 0:00:04]} 48. Rd8 {[%clk 0:00:09]}  d1=Q {[%clk 0:00:05]} 49. Rxd1 {[%clk 0:00:09]}  Rxd1 {[%clk 0:00:01]} 50. Ke3 {[%clk 0:00:10]}  Rd5 {[%clk 0:00:01]} 51. Ke4 {[%clk 0:00:11]}  Rc5 {[%clk 0:00:02]} 52. Rb4 {[%clk 0:00:11]}  Rc4+ {[%clk 0:00:03]} 53. Rxc4 {[%clk 0:00:11]}  Bxc4 {[%clk 0:00:04]} 54. Ke3 {[%clk 0:00:11]}  Be6 {[%clk 0:00:04]} 55. Kf4 {[%clk 0:00:12]}  Kg6 {[%clk 0:00:04]} 56. g4 {[%clk 0:00:12]}  Kh6 {[%clk 0:00:04]} 57. e3 {[%clk 0:00:12]}  Kg6 {[%clk 0:00:05]} 58. g5 {[%clk 0:00:12]}  Kh5 {[%clk 0:00:05]} 59. Kg3 {[%clk 0:00:12]}  Kxg5 {[%clk 0:00:05]} 60. Kf3 {[%clk 0:00:13]}  Kf5 {[%clk 0:00:05]} 61. e4+ {[%clk 0:00:14]}  Kxe5 {[%clk 0:00:05]} 62. Ke3 {[%clk 0:00:15]}  Bb3 {[%clk 0:00:05]} 63. Kf3 {[%clk 0:00:15]}  Bc2 {[%clk 0:00:05]} 64. Ke3 {[%clk 0:00:16]}  Bxe4 {[%clk 0:00:06]} 0-1


[Site "https://www.chess.com"]